[Event "January 9 Late 2024"]
[Site "https://www.chess.com"]
[Date "2024.01.09"]
[Round "2"]
[White "Zarnicki, Pablo"]
[Black "Kostiukov, Alexandr"]
[Result "1-0"]
[Board "183"]
[TimeControl "180+1"]
[WhiteFideId "100137"]
[BlackFideId "14108100"]
[WhiteElo "2525"]
[BlackElo "2289"]
[WhiteTeam "ARG"]
[BlackTeam "UKR"]
[WhiteClock "0:01:08"]
[BlackClock "0:00:00"]

1. e4 {[%clk 0:03:00]}  c5 {[%clk 0:02:58]} 2. Nf3 {[%clk 0:02:51]}  g6 {[%clk 0:02:58]} 3. c3 {[%clk 0:02:45]}  Bg7 {[%clk 0:02:58]} 4. d4 {[%clk 0:02:45]}  cxd4 {[%clk 0:02:59]} 5. cxd4 {[%clk 0:02:45]}  d5 {[%clk 0:02:59]} 6. exd5 {[%clk 0:02:45]}  Nf6 {[%clk 0:02:59]} 7. Nc3 {[%clk 0:02:42]}  Nxd5 {[%clk 0:02:59]} 8. Bc4 {[%clk 0:02:42]}  Nb6 {[%clk 0:02:59]} 9. Bb3 {[%clk 0:02:41]}  O-O {[%clk 0:02:59]} 10. h3 {[%clk 0:02:40]}  Nc6 {[%clk 0:02:59]} 11. Be3 {[%clk 0:02:39]}  Na5 {[%clk 0:03:00]} 12. Bc2 {[%clk 0:02:39]}  Nbc4 {[%clk 0:03:00]} 13. Bc1 {[%clk 0:02:38]}  e5 {[%clk 0:02:55]} 14. d5 {[%clk 0:02:33]}  f5 {[%clk 0:02:45]} 15. O-O {[%clk 0:02:30]}  b6 {[%clk 0:02:23]} 16. b4 {[%clk 0:02:10]}  Nb7 {[%clk 0:02:10]} 17. Bb3 {[%clk 0:02:10]}  Nbd6 {[%clk 0:01:35]} 18. Bg5 {[%clk 0:01:54]}  Qe8 {[%clk 0:01:28]} 19. Rc1 {[%clk 0:01:52]}  Bd7 {[%clk 0:01:22]} 20. Nd2 {[%clk 0:01:39]}  Rc8 {[%clk 0:01:19]} 21. Nxc4 {[%clk 0:01:37]}  Nxc4 {[%clk 0:01:20]} 22. d6 {[%clk 0:01:37]}  Kh8 {[%clk 0:01:19]} 23. Nd5 {[%clk 0:01:37]}  Nxd6 {[%clk 0:00:59]} 24. Be7 {[%clk 0:01:30]}  Rxc1 {[%clk 0:00:47]} 25. Qxc1 {[%clk 0:01:31]}  Nb5 {[%clk 0:00:29]} 26. Bxf8 {[%clk 0:01:27]}  Bxf8 {[%clk 0:00:25]} 27. Nc7 {[%clk 0:01:23]}  Qe7 {[%clk 0:00:20]} 28. Qc4 {[%clk 0:01:18]}  Kg7 {[%clk 0:00:08]} 29. Nxb5 {[%clk 0:01:17]}  Kh6 {[%clk 0:00:06]} 30. Rd1 {[%clk 0:01:16]}  Be8 {[%clk 0:00:04]} 31. Nd6 {[%clk 0:01:16]}  b5 {[%clk 0:00:00]} 32. Qc8 {[%clk 0:01:08]} 1-0

[Event "January 9 Late 2024"]
[Site "https://www.chess.com"]
[Date "2024.01.09"]
[Round "2"]
[White "Lopez Del Alamo, Antonio"]
[Black "Salman, Ilhan Serhat"]
[Result "1-0"]
[Board "184"]
[TimeControl "180+1"]
[WhiteFideId "2227339"]
[BlackFideId "6361579"]
[WhiteElo "2285"]
[BlackElo "2522"]
[WhiteTeam "ESP"]
[BlackTeam "TUR"]
[WhiteClock "0:00:13"]
[BlackClock "0:00:17"]

1. e4 {[%clk 0:03:00]}  c5 {[%clk 0:02:58]} 2. Nf3 {[%clk 0:02:58]}  b6 {[%clk 0:02:57]} 3. d4 {[%clk 0:02:55]}  cxd4 {[%clk 0:02:58]} 4. Nxd4 {[%clk 0:02:55]}  Bb7 {[%clk 0:02:58]} 5. Nc3 {[%clk 0:02:55]}  g6 {[%clk 0:02:58]} 6. Be3 {[%clk 0:02:54]}  Bg7 {[%clk 0:02:58]} 7. Qd2 {[%clk 0:02:53]}  Nc6 {[%clk 0:02:59]} 8. O-O-O {[%clk 0:02:52]}  Rc8 {[%clk 0:02:52]} 9. h4 {[%clk 0:02:47]}  h5 {[%clk 0:02:51]} 10. f3 {[%clk 0:02:44]}  Nf6 {[%clk 0:02:49]} 11. Be2 {[%clk 0:02:39]}  O-O {[%clk 0:02:38]} 12. Nxc6 {[%clk 0:02:02]}  dxc6 {[%clk 0:02:35]} 13. Qe1 {[%clk 0:01:57]}  Qc7 {[%clk 0:02:34]} 14. g4 {[%clk 0:01:51]}  b5 {[%clk 0:02:32]} 15. gxh5 {[%clk 0:01:32]}  Nxh5 {[%clk 0:02:30]} 16. f4 {[%clk 0:01:32]}  Nxf4 {[%clk 0:02:25]} 17. Bxf4 {[%clk 0:01:25]}  Qxf4+ {[%clk 0:02:25]} 18. Kb1 {[%clk 0:01:24]}  b4 {[%clk 0:02:17]} 19. Na4 {[%clk 0:01:20]}  c5 {[%clk 0:02:15]} 20. Rf1 {[%clk 0:01:08]}  Qxe4 {[%clk 0:02:07]} 21. h5 {[%clk 0:01:08]}  Qe5 {[%clk 0:01:48]} 22. hxg6 {[%clk 0:01:03]}  fxg6 {[%clk 0:01:49]} 23. Bc4+ {[%clk 0:01:02]}  Kh7 {[%clk 0:01:39]} 24. Qd2 {[%clk 0:00:42]}  Bc6 {[%clk 0:01:01]} 25. Rh1+ {[%clk 0:00:30]}  Bxh1 {[%clk 0:00:57]} 26. Rxh1+ {[%clk 0:00:30]}  Qh5 {[%clk 0:00:58]} 27. Rxh5+ {[%clk 0:00:30]}  gxh5 {[%clk 0:00:58]} 28. Qg5 {[%clk 0:00:21]}  Rc6 {[%clk 0:00:52]} 29. a3 {[%clk 0:00:19]}  bxa3 {[%clk 0:00:51]} 30. b3 {[%clk 0:00:19]}  Rd6 {[%clk 0:00:35]} 31. Qxh5+ {[%clk 0:00:18]}  Rh6 {[%clk 0:00:36]} 32. Bd3+ {[%clk 0:00:17]}  Kh8 {[%clk 0:00:35]} 33. Qd5 {[%clk 0:00:15]}  e6 {[%clk 0:00:33]} 34. Qe4 {[%clk 0:00:14]}  Rhf6 {[%clk 0:00:17]} 35. Ka2 {[%clk 0:00:14]}  Rf4 {[%clk 0:00:17]} 36. Qh7# {[%clk 0:00:13]} 1-0

[Event "January 9 Late 2024"]
[Site "https://www.chess.com"]
[Date "2024.01.09"]
[Round "2"]
[White "Tikhonov, Viacheslav"]
[Black "Romero Ruscalleda, Josep"]
[Result "1-0"]
[Board "190"]
[TimeControl "180+1"]
[WhiteFideId "44196407"]
[BlackFideId "2231859"]
[WhiteElo "2520"]
[BlackElo "2264"]
[WhiteTeam "RUS"]
[BlackTeam "ESP"]
[WhiteClock "0:00:42"]
[BlackClock "0:01:37"]

1. d4 {[%clk 0:03:00]}  g6 {[%clk 0:03:00]} 2. h4 {[%clk 0:02:53]}  Nf6 {[%clk 0:02:59]} 3. c4 {[%clk 0:02:51]}  d6 {[%clk 0:02:58]} 4. Nc3 {[%clk 0:02:41]}  Nc6 {[%clk 0:02:58]} 5. d5 {[%clk 0:02:37]}  Ne5 {[%clk 0:02:58]} 6. e4 {[%clk 0:02:38]}  Bg7 {[%clk 0:02:54]} 7. Be2 {[%clk 0:02:30]}  h5 {[%clk 0:02:52]} 8. Nh3 {[%clk 0:02:28]}  Bxh3 {[%clk 0:02:49]} 9. Rxh3 {[%clk 0:02:27]}  Qd7 {[%clk 0:02:49]} 10. Bf4 {[%clk 0:02:22]}  Neg4 {[%clk 0:02:42]} 11. f3 {[%clk 0:02:18]}  Bh6 {[%clk 0:02:38]} 12. Qd2 {[%clk 0:02:15]}  Bxf4 {[%clk 0:02:36]} 13. Qxf4 {[%clk 0:02:15]}  Ne5 {[%clk 0:02:36]} 14. c5 {[%clk 0:02:12]}  O-O {[%clk 0:02:29]} 15. Kf2 {[%clk 0:02:04]}  c6 {[%clk 0:02:25]} 16. cxd6 {[%clk 0:02:00]}  exd6 {[%clk 0:02:24]} 17. Qxf6 {[%clk 0:01:59]}  b5 {[%clk 0:02:09]} 18. Rd1 {[%clk 0:01:32]}  b4 {[%clk 0:02:02]} 19. dxc6 {[%clk 0:01:32]}  Qxc6 {[%clk 0:02:02]} 20. Nd5 {[%clk 0:01:32]}  Qc5+ {[%clk 0:01:57]} 21. Kf1 {[%clk 0:01:30]}  Qc2 {[%clk 0:01:49]} 22. Qxd6 {[%clk 0:00:59]}  Nc4 {[%clk 0:01:48]} 23. Bxc4 {[%clk 0:00:54]}  Qxd1+ {[%clk 0:01:47]} 24. Kf2 {[%clk 0:00:55]}  Qd2+ {[%clk 0:01:46]} 25. Kg3 {[%clk 0:00:53]}  Qxb2 {[%clk 0:01:46]} 26. Kh2 {[%clk 0:00:50]}  Rad8 {[%clk 0:01:44]} 27. Qe7 {[%clk 0:00:46]}  Kg7 {[%clk 0:01:42]} 28. Rg3 {[%clk 0:00:42]}  Rfe8 {[%clk 0:01:41]} 29. Rxg6+ {[%clk 0:00:42]}  Kxg6 {[%clk 0:01:40]} 30. Qg5+ {[%clk 0:00:42]}  Kh7 {[%clk 0:01:40]} 31. Nf6+ {[%clk 0:00:42]}  Kh8 {[%clk 0:01:37]} 32. Qh6# {[%clk 0:00:42]} 1-0

[Event "January 9 Late 2024"]
[Site "https://www.chess.com"]
[Date "2024.01.09"]
[Round "2"]
[White "Delorme, Axel"]
[Black "Kaganskiy, Gleb"]
[Result "0-1"]
[Board "193"]
[TimeControl "180+1"]
[WhiteFideId "632023"]
[BlackFideId "4132025"]
[WhiteElo "2517"]
[BlackElo "2257"]
[WhiteTeam "FRA"]
[BlackTeam "ISR"]
[WhiteClock "0:00:02"]
[BlackClock "0:01:04"]

1. e4 {[%clk 0:03:00]}  Nc6 {[%clk 0:02:59]} 2. d4 {[%clk 0:02:59]}  d5 {[%clk 0:02:59]} 3. e5 {[%clk 0:02:59]}  f6 {[%clk 0:02:59]} 4. Bd3 {[%clk 0:02:53]}  Nxd4 {[%clk 0:02:59]} 5. Qh5+ {[%clk 0:02:44]}  g6 {[%clk 0:02:59]} 6. Bxg6+ {[%clk 0:02:33]}  hxg6 {[%clk 0:03:00]} 7. Qxh8 {[%clk 0:02:34]}  Qd7 {[%clk 0:03:00]} 8. Qxg8 {[%clk 0:02:24]}  Qf5 {[%clk 0:03:00]} 9. Bh6 {[%clk 0:01:48]}  Qe4+ {[%clk 0:01:21]} 10. Kd2 {[%clk 0:01:30]}  Qxc2+ {[%clk 0:01:19]} 11. Ke1 {[%clk 0:01:22]}  Bg4 {[%clk 0:01:12]} 12. Nc3 {[%clk 0:00:44]}  O-O-O {[%clk 0:01:07]} 13. Bxf8 {[%clk 0:00:36]}  Qxb2 {[%clk 0:01:06]} 14. Rb1 {[%clk 0:00:02]}  Qxc3+ {[%clk 0:01:04]} 0-1

[Event "January 9 Late 2024"]
[Site "https://www.chess.com"]
[Date "2024.01.09"]
[Round "2"]
[White "Eggleston, Thomas A"]
[Black "Espinoza Palomino, Willyam"]
[Result "0-1"]
[Board "194"]
[TimeControl "180+1"]
[WhiteFideId "412139"]
[BlackFideId "3804852"]
[WhiteElo "2256"]
[BlackElo "2516"]
[WhiteTeam "ENG"]
[BlackTeam "PER"]
[WhiteClock "0:00:21"]
[BlackClock "0:00:34"]

1. e4 {[%clk 0:03:00]}  e5 {[%clk 0:03:00]} 2. Nf3 {[%clk 0:03:00]}  Nc6 {[%clk 0:03:00]} 3. d4 {[%clk 0:03:00]}  exd4 {[%clk 0:03:00]} 4. Nxd4 {[%clk 0:03:01]}  Nf6 {[%clk 0:03:01]} 5. Nc3 {[%clk 0:03:01]}  Bb4 {[%clk 0:03:01]} 6. Nxc6 {[%clk 0:03:01]}  bxc6 {[%clk 0:03:01]} 7. Bd3 {[%clk 0:03:01]}  d5 {[%clk 0:03:02]} 8. exd5 {[%clk 0:03:02]}  cxd5 {[%clk 0:03:03]} 9. O-O {[%clk 0:03:01]}  O-O {[%clk 0:03:04]} 10. h3 {[%clk 0:03:02]}  c6 {[%clk 0:03:04]} 11. Qf3 {[%clk 0:03:02]}  Be6 {[%clk 0:02:52]} 12. Bf4 {[%clk 0:03:02]}  Bd6 {[%clk 0:02:50]} 13. Bxd6 {[%clk 0:02:58]}  Qxd6 {[%clk 0:02:51]} 14. Qg3 {[%clk 0:02:58]}  Qxg3 {[%clk 0:02:42]} 15. fxg3 {[%clk 0:02:58]}  a5 {[%clk 0:02:41]} 16. b3 {[%clk 0:02:40]}  Nd7 {[%clk 0:02:28]} 17. Na4 {[%clk 0:02:35]}  Rab8 {[%clk 0:02:19]} 18. Rae1 {[%clk 0:02:31]}  Rfe8 {[%clk 0:02:16]} 19. g4 {[%clk 0:02:29]}  f6 {[%clk 0:01:57]} 20. Rf2 {[%clk 0:02:24]}  Bf7 {[%clk 0:01:47]} 21. Rxe8+ {[%clk 0:02:08]}  Rxe8 {[%clk 0:01:44]} 22. Re2 {[%clk 0:02:06]}  Re5 {[%clk 0:01:40]} 23. Kf2 {[%clk 0:02:01]}  Kf8 {[%clk 0:01:40]} 24. Ba6 {[%clk 0:01:42]}  Ke7 {[%clk 0:01:34]} 25. Re3 {[%clk 0:01:24]}  Kd6 {[%clk 0:01:23]} 26. Bc8 {[%clk 0:01:20]}  Rxe3 {[%clk 0:01:15]} 27. Kxe3 {[%clk 0:01:20]}  Ne5 {[%clk 0:01:15]} 28. Ba6 {[%clk 0:01:08]}  c5 {[%clk 0:01:08]} 29. c3 {[%clk 0:01:07]}  Bg6 {[%clk 0:01:05]} 30. a3 {[%clk 0:01:01]}  Bc2 {[%clk 0:01:03]} 31. Nb6 {[%clk 0:00:56]}  Bxb3 {[%clk 0:01:00]} 32. Nc8+ {[%clk 0:00:51]}  Ke6 {[%clk 0:00:55]} 33. Bb5 {[%clk 0:00:46]}  Bc4 {[%clk 0:00:50]} 34. Ba4 {[%clk 0:00:43]}  Bf1 {[%clk 0:00:47]} 35. Kf2 {[%clk 0:00:42]}  Ba6 {[%clk 0:00:45]} 36. Bb3 {[%clk 0:00:38]}  Bxc8 {[%clk 0:00:44]} 37. a4 {[%clk 0:00:37]}  Ba6 {[%clk 0:00:44]} 38. Ke3 {[%clk 0:00:36]}  Bf1 {[%clk 0:00:43]} 39. Kf2 {[%clk 0:00:36]}  Bc4 {[%clk 0:00:44]} 40. Bc2 {[%clk 0:00:36]}  Nd3+ {[%clk 0:00:44]} 41. Ke3 {[%clk 0:00:34]}  Ne1 {[%clk 0:00:39]} 42. Bxh7 {[%clk 0:00:32]}  Nxg2+ {[%clk 0:00:39]} 43. Kf2 {[%clk 0:00:29]}  Nf4 {[%clk 0:00:38]} 44. Bf5+ {[%clk 0:00:29]}  Ke5 {[%clk 0:00:38]} 45. Ke3 {[%clk 0:00:29]}  Nxh3 {[%clk 0:00:37]} 46. Bc8 {[%clk 0:00:29]}  Nf4 {[%clk 0:00:36]} 47. Kf3 {[%clk 0:00:29]}  g5 {[%clk 0:00:35]} 48. Bd7 {[%clk 0:00:28]}  Ne2 {[%clk 0:00:34]} 49. Bf5 {[%clk 0:00:27]}  Nxc3 {[%clk 0:00:34]} 50. Bc2 {[%clk 0:00:26]}  d4 {[%clk 0:00:34]} 51. Kf2 {[%clk 0:00:26]}  Kf4 {[%clk 0:00:34]} 52. Kg2 {[%clk 0:00:24]}  d3 {[%clk 0:00:34]} 53. Bxd3 {[%clk 0:00:21]}  Bxd3 {[%clk 0:00:34]} 0-1

[Event "January 9 Late 2024"]
[Site "https://www.chess.com"]
[Date "2024.01.09"]
[Round "2"]
[White "Stojanovski, Sandi"]
[Black "Kappeler, Kaspar"]
[Result "1/2-1/2"]
[Board "195"]
[TimeControl "180+1"]
[WhiteFideId "1403249"]
[BlackFideId "1309072"]
[WhiteElo "2514"]
[BlackElo "2255"]
[WhiteTeam "DEN"]
[BlackTeam "SUI"]
[WhiteClock "0:00:16"]
[BlackClock "0:00:08"]

1. d3 {[%clk 0:03:00]}  Nf6 {[%clk 0:02:58]} 2. Nf3 {[%clk 0:03:01]}  e6 {[%clk 0:02:58]} 3. g3 {[%clk 0:03:02]}  d5 {[%clk 0:02:57]} 4. Bg2 {[%clk 0:03:03]}  c5 {[%clk 0:02:57]} 5. O-O {[%clk 0:03:04]}  Nc6 {[%clk 0:02:57]} 6. c4 {[%clk 0:03:04]}  d4 {[%clk 0:02:56]} 7. e3 {[%clk 0:03:02]}  Be7 {[%clk 0:02:55]} 8. exd4 {[%clk 0:03:01]}  cxd4 {[%clk 0:02:55]} 9. Bf4 {[%clk 0:03:01]}  Nd7 {[%clk 0:02:48]} 10. Re1 {[%clk 0:02:59]}  O-O {[%clk 0:02:43]} 11. a3 {[%clk 0:02:59]}  a5 {[%clk 0:02:42]} 12. Ne5 {[%clk 0:02:58]}  Ncxe5 {[%clk 0:02:41]} 13. Bxe5 {[%clk 0:02:59]}  Nxe5 {[%clk 0:02:39]} 14. Rxe5 {[%clk 0:02:58]}  a4 {[%clk 0:02:32]} 15. Nd2 {[%clk 0:02:57]}  Ra6 {[%clk 0:02:19]} 16. Rb5 {[%clk 0:02:50]}  Rb6 {[%clk 0:02:15]} 17. Rxb6 {[%clk 0:02:10]}  Qxb6 {[%clk 0:02:14]} 18. Rb1 {[%clk 0:02:10]}  Bd7 {[%clk 0:02:14]} 19. b4 {[%clk 0:02:07]}  axb3 {[%clk 0:02:13]} 20. Qxb3 {[%clk 0:02:02]}  Qxb3 {[%clk 0:02:04]} 21. Rxb3 {[%clk 0:02:01]}  Bc6 {[%clk 0:01:46]} 22. Bxc6 {[%clk 0:01:59]}  bxc6 {[%clk 0:01:46]} 23. Nf3 {[%clk 0:01:51]}  Bf6 {[%clk 0:01:28]} 24. a4 {[%clk 0:01:48]}  Ra8 {[%clk 0:01:28]} 25. a5 {[%clk 0:01:33]}  g6 {[%clk 0:01:26]} 26. Ra3 {[%clk 0:01:29]}  Ra6 {[%clk 0:01:23]} 27. Ra4 {[%clk 0:01:18]}  e5 {[%clk 0:01:08]} 28. Nd2 {[%clk 0:01:18]}  Bd8 {[%clk 0:01:03]} 29. Nb3 {[%clk 0:01:15]}  f5 {[%clk 0:00:56]} 30. Rb4 {[%clk 0:01:14]}  Kg7 {[%clk 0:00:48]} 31. Ra4 {[%clk 0:01:06]}  Kf6 {[%clk 0:00:40]} 32. f3 {[%clk 0:01:05]}  g5 {[%clk 0:00:40]} 33. Kf2 {[%clk 0:01:02]}  h5 {[%clk 0:00:39]} 34. h3 {[%clk 0:01:01]}  g4 {[%clk 0:00:33]} 35. fxg4 {[%clk 0:00:58]}  hxg4 {[%clk 0:00:32]} 36. hxg4 {[%clk 0:00:56]}  fxg4 {[%clk 0:00:31]} 37. Ke2 {[%clk 0:00:56]}  Kf5 {[%clk 0:00:31]} 38. Kd2 {[%clk 0:00:55]}  Bg5+ {[%clk 0:00:27]} 39. Kc2 {[%clk 0:00:54]}  Bd8 {[%clk 0:00:26]} 40. Kb2 {[%clk 0:00:52]}  Bc7 {[%clk 0:00:20]} 41. Kc2 {[%clk 0:00:45]}  Bb6 {[%clk 0:00:19]} 42. axb6 {[%clk 0:00:39]}  Rxa4 {[%clk 0:00:19]} 43. b7 {[%clk 0:00:30]}  Rb4 {[%clk 0:00:19]} 44. Nc5 {[%clk 0:00:29]}  Kg6 {[%clk 0:00:14]} 45. Nd7 {[%clk 0:00:27]}  Rxb7 {[%clk 0:00:12]} 46. Nxe5+ {[%clk 0:00:28]}  Kf5 {[%clk 0:00:13]} 47. Nxc6 {[%clk 0:00:28]}  Rh7 {[%clk 0:00:12]} 48. Nxd4+ {[%clk 0:00:27]}  Kf6 {[%clk 0:00:10]} 49. Kd2 {[%clk 0:00:26]}  Rh3 {[%clk 0:00:08]} 50. Ne2 {[%clk 0:00:26]}  Ke5 {[%clk 0:00:08]} 51. Ke3 {[%clk 0:00:27]}  Rh1 {[%clk 0:00:07]} 52. d4+ {[%clk 0:00:26]}  Kf5 {[%clk 0:00:07]} 53. d5 {[%clk 0:00:25]}  Ra1 {[%clk 0:00:07]} 54. Nd4+ {[%clk 0:00:23]}  Ke5 {[%clk 0:00:06]} 55. Nc6+ {[%clk 0:00:24]}  Kd6 {[%clk 0:00:06]} 56. Kd4 {[%clk 0:00:12]}  Rd1+ {[%clk 0:00:05]} 57. Ke4 {[%clk 0:00:11]}  Rc1 {[%clk 0:00:05]} 58. Kd3 {[%clk 0:00:08]}  Rd1+ {[%clk 0:00:05]} 59. Kc2 {[%clk 0:00:07]}  Rg1 {[%clk 0:00:04]} 60. Nd4 {[%clk 0:00:07]}  Rg2+ {[%clk 0:00:04]} 61. Kd3 {[%clk 0:00:05]}  Rxg3+ {[%clk 0:00:04]} 62. Ke4 {[%clk 0:00:06]}  Rg1 {[%clk 0:00:03]} 63. Nf5+ {[%clk 0:00:04]}  Kc5 {[%clk 0:00:03]} 64. d6 {[%clk 0:00:05]}  Re1+ {[%clk 0:00:03]} 65. Kf4 {[%clk 0:00:05]}  Rf1+ {[%clk 0:00:02]} 66. Kxg4 {[%clk 0:00:04]}  Rxf5 {[%clk 0:00:02]} 67. Kxf5 {[%clk 0:00:04]}  Kxd6 {[%clk 0:00:03]} 68. Ke4 {[%clk 0:00:05]}  Kc5 {[%clk 0:00:03]} 69. Kd3 {[%clk 0:00:05]}  Kc6 {[%clk 0:00:04]} 70. Kd4 {[%clk 0:00:06]}  Kd6 {[%clk 0:00:04]} 71. Kc3 {[%clk 0:00:07]}  Kc5 {[%clk 0:00:04]} 72. Kb3 {[%clk 0:00:08]}  Kc6 {[%clk 0:00:04]} 73. Kb4 {[%clk 0:00:09]}  Kb6 {[%clk 0:00:04]} 74. Ka4 {[%clk 0:00:09]}  Kc5 {[%clk 0:00:05]} 75. Kb3 {[%clk 0:00:09]}  Kc6 {[%clk 0:00:05]} 76. Kc2 {[%clk 0:00:10]}  Kc5 {[%clk 0:00:05]} 77. Kd3 {[%clk 0:00:10]}  Kc6 {[%clk 0:00:05]} 78. Kd4 {[%clk 0:00:11]}  Kd6 {[%clk 0:00:06]} 79. c5+ {[%clk 0:00:12]}  Kc6 {[%clk 0:00:06]} 80. Kc4 {[%clk 0:00:12]}  Kc7 {[%clk 0:00:06]} 81. Kc3 {[%clk 0:00:13]}  Kc6 {[%clk 0:00:07]} 82. Kb4 {[%clk 0:00:14]}  Kc7 {[%clk 0:00:06]} 83. Ka5 {[%clk 0:00:15]}  Kc6 {[%clk 0:00:07]} 84. Kb4 {[%clk 0:00:15]}  Kc7 {[%clk 0:00:07]} 85. Kc3 {[%clk 0:00:16]}  Kc6 {[%clk 0:00:07]} 86. Kd4 {[%clk 0:00:16]}  Kc7 {[%clk 0:00:07]} 87. Kd5 {[%clk 0:00:17]}  Kd7 {[%clk 0:00:08]} 88. Kd4 {[%clk 0:00:16]}  Kc6 {[%clk 0:00:07]} 89. Kc4 {[%clk 0:00:16]}  Kc7 {[%clk 0:00:08]} 90. Kc3 {[%clk 0:00:16]} 1/2-1/2

[Event "January 9 Late 2024"]
[Site "https://www.chess.com"]
[Date "2024.01.09"]
[Round "2"]
[White "Rose, Felix"]
[Black "Mullodzhanov, Nathaniel"]
[Result "0-1"]
[Board "197"]
[TimeControl "180+1"]
[WhiteFideId "5105722"]
[BlackFideId "30961580"]
[WhiteElo "2247"]
[BlackElo "2509"]
[WhiteTeam "MEX"]
[BlackTeam "USA"]
[WhiteClock "0:01:28"]
[BlackClock "0:02:18"]

1. e4 {[%clk 0:03:00]}  c6 {[%clk 0:03:00]} 2. d4 {[%clk 0:03:00]}  d5 {[%clk 0:03:00]} 3. e5 {[%clk 0:03:01]}  Bf5 {[%clk 0:03:00]} 4. h4 {[%clk 0:03:01]}  h6 {[%clk 0:03:00]} 5. g4 {[%clk 0:03:01]}  Be4 {[%clk 0:03:00]} 6. f3 {[%clk 0:03:02]}  Bh7 {[%clk 0:03:01]} 7. e6 {[%clk 0:03:02]}  Qd6 {[%clk 0:03:01]} 8. exf7+ {[%clk 0:03:02]}  Kxf7 {[%clk 0:03:02]} 9. Ne2 {[%clk 0:02:57]}  Nf6 {[%clk 0:02:56]} 10. Bf4 {[%clk 0:02:55]}  Qd7 {[%clk 0:02:56]} 11. h5 {[%clk 0:02:54]}  e6 {[%clk 0:02:55]} 12. Ng3 {[%clk 0:02:53]}  Bd6 {[%clk 0:02:53]} 13. Qd2 {[%clk 0:02:39]}  Bxf4 {[%clk 0:02:50]} 14. Qxf4 {[%clk 0:02:40]}  Bxc2 {[%clk 0:02:50]} 15. Nc3 {[%clk 0:02:37]}  Rd8 {[%clk 0:02:45]} 16. Be2 {[%clk 0:02:35]}  Qd6 {[%clk 0:02:43]} 17. Qxd6 {[%clk 0:02:27]}  Rxd6 {[%clk 0:02:43]} 18. O-O {[%clk 0:02:27]}  Rd8 {[%clk 0:02:35]} 19. b4 {[%clk 0:02:23]}  a5 {[%clk 0:02:32]} 20. b5 {[%clk 0:02:20]}  b6 {[%clk 0:02:25]} 21. bxc6 {[%clk 0:02:02]}  Nxc6 {[%clk 0:02:25]} 22. Rac1 {[%clk 0:02:02]}  Nxd4 {[%clk 0:02:22]} 23. Rfe1 {[%clk 0:01:28]}  Rac8 {[%clk 0:02:18]} 0-1

[Event "January 9 Late 2024"]
[Site "https://www.chess.com"]
[Date "2024.01.09"]
[Round "2"]
[White "Eke, Salih"]
[Black "Harish, Neeraj"]
[Result "0-1"]
[Board "199"]
[TimeControl "180+1"]
[WhiteFideId "6397573"]
[BlackFideId "30958130"]
[WhiteElo "2508"]
[BlackElo "2246"]
[WhiteTeam "TUR"]
[BlackTeam "USA"]
[WhiteClock "0:01:06"]
[BlackClock "0:00:04"]

1. d4 {[%clk 0:03:00]}  Nf6 {[%clk 0:02:55]} 2. Bf4 {[%clk 0:03:01]}  d5 {[%clk 0:02:53]} 3. Nf3 {[%clk 0:03:02]}  c5 {[%clk 0:02:53]} 4. e3 {[%clk 0:03:02]}  Nc6 {[%clk 0:02:52]} 5. c3 {[%clk 0:03:02]}  Qb6 {[%clk 0:02:51]} 6. Qb3 {[%clk 0:02:59]}  c4 {[%clk 0:02:51]} 7. Qxb6 {[%clk 0:02:59]}  axb6 {[%clk 0:02:52]} 8. Na3 {[%clk 0:02:59]}  Ra5 {[%clk 0:02:23]} 9. Be2 {[%clk 0:02:51]}  Bf5 {[%clk 0:02:11]} 10. Bc7 {[%clk 0:02:49]}  Nd7 {[%clk 0:02:07]} 11. Kd2 {[%clk 0:02:41]}  e6 {[%clk 0:02:03]} 12. Nc2 {[%clk 0:02:41]}  Be7 {[%clk 0:01:30]} 13. a3 {[%clk 0:02:38]}  O-O {[%clk 0:01:29]} 14. Nb4 {[%clk 0:02:32]}  Rfa8 {[%clk 0:01:19]} 15. Ne5 {[%clk 0:02:19]}  Ndxe5 {[%clk 0:01:05]} 16. Bxe5 {[%clk 0:02:01]}  Nxb4 {[%clk 0:00:58]} 17. cxb4 {[%clk 0:02:00]}  Bxb4+ {[%clk 0:00:55]} 18. Kc1 {[%clk 0:01:45]}  c3 {[%clk 0:00:52]} 19. g4 {[%clk 0:01:41]}  cxb2+ {[%clk 0:00:43]} 20. Kxb2 {[%clk 0:01:40]}  Bxa3+ {[%clk 0:00:43]} 21. Kb3 {[%clk 0:01:35]}  Be4 {[%clk 0:00:13]} 22. f3 {[%clk 0:01:35]}  Bg6 {[%clk 0:00:09]} 23. h4 {[%clk 0:01:35]}  h5 {[%clk 0:00:06]} 24. Bc7 {[%clk 0:01:35]}  hxg4 {[%clk 0:00:06]} 25. fxg4 {[%clk 0:01:33]}  Be4 {[%clk 0:00:05]} 26. Rhf1 {[%clk 0:01:33]}  Rc8 {[%clk 0:00:05]} 27. Bxb6 {[%clk 0:01:28]}  Bc2+ {[%clk 0:00:04]} 28. Ka2 {[%clk 0:01:29]}  Raa8 {[%clk 0:00:04]} 29. Bc5 {[%clk 0:01:09]}  Bc1+ {[%clk 0:00:04]} 30. Ba7 {[%clk 0:01:06]}  Rxa7+ {[%clk 0:00:04]} 0-1

[Event "January 9 Late 2024"]
[Site "https://www.chess.com"]
[Date "2024.01.09"]
[Round "2"]
[White "Martins, Bruno Andre Leite"]
[Black "Liu, Kelsey"]
[Result "1-0"]
[Board "200"]
[TimeControl "180+1"]
[WhiteFideId "1942255"]
[BlackFideId "30944481"]
[WhiteElo "2508"]
[BlackElo "2239"]
[WhiteTeam "POR"]
[BlackTeam "USA"]
[WhiteClock "0:01:08"]
[BlackClock "0:00:10"]

1. d4 {[%clk 0:02:51]}  Nf6 {[%clk 0:02:59]} 2. c4 {[%clk 0:02:50]}  g6 {[%clk 0:02:58]} 3. g3 {[%clk 0:02:48]}  Bg7 {[%clk 0:02:59]} 4. Bg2 {[%clk 0:02:48]}  O-O {[%clk 0:02:59]} 5. Nf3 {[%clk 0:02:48]}  d6 {[%clk 0:02:59]} 6. O-O {[%clk 0:02:48]}  c5 {[%clk 0:03:00]} 7. Nc3 {[%clk 0:02:47]}  Nc6 {[%clk 0:03:00]} 8. dxc5 {[%clk 0:02:47]}  dxc5 {[%clk 0:03:00]} 9. Be3 {[%clk 0:02:48]}  Qa5 {[%clk 0:02:59]} 10. Qa4 {[%clk 0:02:46]}  Qb4 {[%clk 0:02:53]} 11. Qb5 {[%clk 0:02:46]}  a6 {[%clk 0:02:52]} 12. Qxc5 {[%clk 0:02:45]}  Bg4 {[%clk 0:02:46]} 13. Qxb4 {[%clk 0:02:39]}  Nxb4 {[%clk 0:02:47]} 14. Bc5 {[%clk 0:02:39]}  Nc6 {[%clk 0:02:45]} 15. Nd4 {[%clk 0:02:33]}  Nxd4 {[%clk 0:02:41]} 16. Bxd4 {[%clk 0:02:34]}  Rab8 {[%clk 0:02:23]} 17. Be5 {[%clk 0:02:21]}  Rbc8 {[%clk 0:02:21]} 18. Bxb7 {[%clk 0:02:19]}  Rxc4 {[%clk 0:02:19]} 19. Bxa6 {[%clk 0:02:19]}  Rc5 {[%clk 0:02:16]} 20. Bd4 {[%clk 0:02:16]}  Ra5 {[%clk 0:02:14]} 21. Bc4 {[%clk 0:02:12]}  Rc8 {[%clk 0:02:13]} 22. b3 {[%clk 0:02:10]}  e5 {[%clk 0:02:06]} 23. Bb6 {[%clk 0:02:07]}  Raa8 {[%clk 0:02:04]} 24. a4 {[%clk 0:01:38]}  Nd7 {[%clk 0:02:02]} 25. Be3 {[%clk 0:01:36]}  e4 {[%clk 0:01:51]} 26. Rac1 {[%clk 0:01:34]}  Ne5 {[%clk 0:01:51]} 27. Bd5 {[%clk 0:01:32]}  Rab8 {[%clk 0:01:52]} 28. Ba7 {[%clk 0:01:21]}  Rb4 {[%clk 0:01:20]} 29. Nxe4 {[%clk 0:01:19]}  Rxc1 {[%clk 0:01:01]} 30. Rxc1 {[%clk 0:01:18]}  h5 {[%clk 0:00:25]} 31. f3 {[%clk 0:01:11]}  Bh3 {[%clk 0:00:24]} 32. Kf2 {[%clk 0:01:09]}  Kh7 {[%clk 0:00:12]} 33. Ng5+ {[%clk 0:01:09]}  Kh6 {[%clk 0:00:10]} 34. Nxh3 {[%clk 0:01:08]} 1-0